Cogmind - Beta 12 @@@ ROGUE MODE // 2023.03.04 @ 13:14:53 Player: Zntyl Result: Destroyed by 8R-AWN with 8R-AWN's Boregun Performance ------------- Evolutions (0) 0 Regions Visited (3) 600 Robots Destroyed (2) 10 Value Destroyed (81) 81 Prototype IDs (0) 0 Alien Tech Used (0) 0 Bonus (-952) -952 TOTAL SCORE: -261 Bonus ------- Friendly Fire -952 Cogmind --------- Core Integrity 0/250 Matter 263/300 Energy 300/300 System Corruption 1% Temperature Cool (0) Movement Core (150) Ox2 Location -10/Exiles Parts ------- > --- POWER (1) -------- (None) > --- PROPULSION (2) --- (None) > --- UTILITY (2) ------ Small Storage Unit Large Battery > --- WEAPON (2) ------- (None) > --- INVENTORY (8) ---- Ion Engine Assault Rifle Grenade Launcher Grenade Launcher Rocket Launcher Peak State ------------ > --- POWER ------------ Ion Engine > --- PROPULSION ------- Wheel Compact Wheel > --- UTILITY ---------- Small Storage Unit > --- WEAPON ----------- Grenade Launcher Rocket Launcher > --- INVENTORY -------- Ion Engine Large Battery Assault Rifle Light Assault Rifle Light Assault Rifle Grenade Launcher [Rating: 7] Favorites ----------- Power Ion Engine Engine Ion Engine Propulsion Wheel Wheel Wheel Utility Small Storage Unit Storage Small Storage Unit Weapon Light Assault Rifle Ballistic Gun Light Assault Rifle Launcher Grenade Launcher Build | -11 -10 -10 -10 ------- Run | Jun Mat Min Exi Slots Evolved . | . . . . Power . | . . . . Propulsion . | . . . . Utility . | . . . . Weapon . | . . . . Parts Attached 13 | 6 2 . 5 Power 1 | 1 . . . Engine 1 | 1 . . . Core . | . . . . Reactor . | . . . . Propulsion 2 | 2 . . . Treads . | . . . . Leg . | . . . . Wheel 2 | 2 . . . Hover . | . . . . Flight . | . . . . Utility 2 | 1 . . 1 Device . | . . . . Storage 2 | 1 . . 1 Processor . | . . . . Hackware . | . . . . Protection . | . . . . Artifact . | . . . . Weapon 8 | 2 2 . 4 Energy Gun . | . . . . Energy Cannon . | . . . . Ballistic Gun 5 | 2 1 . 2 Ballistic Cannon . | . . . . Launcher 3 | . 1 . 2 Special Weapon . | . . . . Impact Weapon . | . . . . Slashing Weapon . | . . . . Piercing Weapon . | . . . . Special Melee Weapon . | . . . . Unidentified Prototypes . | . . . . Parts Lost 5 | . . . 5 Power 1 | . . . 1 Propulsion 2 | . . . 2 Utility . | . . . . Weapon 2 | . . . 2 Highest Loss Streak 5 | . . . 5 To Critical Strikes 1 | . . . 1 Average Slot Usage (%) 83 | . 85 85 79 Engine 13 | . 14 14 12 Wheel 26 | . 28 28 24 Storage 14 | . 14 14 15 Ballistic Gun 26 | . 26 28 25 Naked Turns . | . . . . Heaviest Build 17 | 13 13 13 17 Greatest Support 26 | 26 26 26 26 Greatest Overweight (x) 4 | . . . 4 Average Overweight (x) . | . . . . Largest Inventory Capacity 8 | 8 8 8 8 Average Capacity 7 | 7 8 8 8 Most Carried 7 | 5 4 7 7 Average Carried 5 | 1 3 5 5 Final Capacity 8 | 8 8 8 8 Final Carried 6 | 2 4 6 5 Class Distribution -------------------- 100% | Mutant Dominant Class ---------------- Mutant | -10/Materials Mutant | -10/Mines Mutant | -10/Exiles Resources | -11 -10 -10 -10 ----------- Run | Jun Mat Min Exi Matter Collected 332 | 207 55 70 . Remotely . | . . . . Salvage Created 49 | . 31 . 18 Parts 1 | . 1 . . Haulers Intercepted . | . . . . Recyclers Shooed . | . . . . Parts Field Recycled . | . . . . Retrieved Matter . | . . . . Parts Self-Destructed . | . . . . Prevented . | . . . . Kills | -11 -10 -10 -10 ------- Run | Jun Mat Min Exi Combat Hostiles Destroyed 3 | . 2 . 1 AOE 3 | . 2 . 1 Classes Destroyed 2 | . 1 . 1 Grunt 2 | . 2 . . Assembled 7 | . . . 7 Best Kill Streak 2 | . 2 . 1 Combat Bots Only 2 | . 2 . 1 Max Kills in Single Turn 6 | . 2 . 6 Gunslinging . | . . . . Exploded 2 | . 2 . 1 Melee . | . . . . Uniques/NPCs Destroyed . | . . . . Combat | -11 -10 -10 -10 -------- Run | Jun Mat Min Exi Damage Taken 656 | . 126 . 530 Core 257 | . 16 . 241 Absorbed by Shields . | . . . . Core Remaining (%) 100 | 100 . . . Volleys Fired 11 | . 4 1 6 Largest 2 | . 2 2 2 Hottest 63 | . 50 40 63 Shots Fired 22 | . 8 2 12 Gun 14 | . 4 2 8 Cannon . | . . . . Launcher 8 | . 4 . 4 Special . | . . . . Kinetic 14 | . 4 2 8 Thermal . | . . . . Explosive 8 | . 4 . 4 Electromagnetic . | . . . . Robot Hit Streak 8 | . 6 . 8 Robot Miss Streak 2 | . 1 . 2 Penetration Max . | . . . . Secondary Targets . | . . . . Shots Hit Robots 12 | . 6 . 6 Core Hits 19 | . 6 . 13 Critical Kills . | . . . . Critical Parts Destroyed . | . . . . Critical Strikes . | . . . . Melee Attacks . | . . . . Impact . | . . . . Slashing . | . . . . Piercing . | . . . . Sneak Attacks . | . . . . Combat Hostiles . | . . . . Follow-up Attacks . | . . . . Damage Inflicted 728 | . 302 . 426 Guns 68 | . 32 . 36 Cannons . | . . . . Explosions 645 | . 270 . 375 Melee . | . . . . Ramming 15 | . . . 15 Kinetic 68 | . 32 . 36 Thermal . | . . . . Explosive 645 | . 270 . 375 Electromagnetic . | . . . . Impact . | . . . . Slashing . | . . . . Piercing . | . . . . Highest Corruption 1 | . . . 1 Average Corruption 1 | . . . 1 Corruption Purged . | . . . . Corruption Blocked . | . . . . Overload Shots . | . . . . Overflow Damage . | . . . . Projectiles . | . . . . Explosions . | . . . . Melee . | . . . . Knockbacks . | . . . . Impact . | . . . . Kinetic . | . . . . Secondary . | . . . . Self-Inflicted Damage 5 | . . . 5 Shots . | . . . . Rammed 14 | . . . 14 Targets Rammed 14 | . . . 14 Kicked . | . . . . Crushed . | . . . . Highest Temperature 33 | . 33 . 6 Average Temperature 15 | . 20 . 3 Received Heat Transfer 69 | . 69 . . Siege Activations . | . . . . Robots Corrupted . | . . . . Combat Hostiles . | . . . . Parts Fried . | . . . . Impact Corruptions . | . . . . Robots Melted . | . . . . Combat Hostiles . | . . . . Parts Melted . | . . . . Heat Transferred . | . . . . Parts Sabotaged . | . . . . Parts Stolen . | . . . . Parts Stripped . | . . . . Power Chain Reactions . | . . . . Missiles Intercepted . | . . . . Alert | -11 -10 -10 -10 ------- Run | Jun Mat Min Exi Peak Influence 91 | . 80 91 . Initial 31 | . . 31 . Average 41 | . 59 41 . Maximum Alert Level . | . . . . Low Security (%) 100 | 100 100 100 . Level 1 . | . . . . Level 2 . | . . . . Level 3 . | . . . . Level 4 . | . . . . Level 5 . | . . . . High Security . | . . . . Max Security . | . . . . Squads Dispatched 4 | . 4 . . Investigation 3 | . 3 . . Extermination . | . . . . Reinforcement 1 | . 1 . . Assault . | . . . . Garrison . | . . . . Intercept . | . . . . Searches Triggered . | . . . . Construction Impeded . | . . . . Haulers Reinforced . | . . . . Active Scanning Responses . | . . . . Cargo Convoy Interrupts . | . . . . Stealth | -11 -10 -10 -10 --------- Run | Jun Mat Min Exi Distress Signals 1 | . 1 . . Communications Jammed . | . . . . Distress Signals . | . . . . Times Spotted 13 | . 3 8 2 Peak Tracking Total 4 | . 2 4 3 Tactical Retreats 3 | . . 3 . Traps | -11 -10 -10 -10 ------- Run | Jun Mat Min Exi Traps Triggered . | . . . . Indirectly . | . . . . Trap Hack Attempts . | . . . . Triggered . | . . . . Disarmed . | . . . . Reprogrammed . | . . . . Reused . | . . . . Traps Extracted . | . . . . Installed . | . . . . Triggered . | . . . . Machines | -11 -10 -10 -10 ---------- Run | Jun Mat Min Exi Machines Disabled 3 | . . . 3 Max in Single Turn 2 | . . . 2 Machines Repaired . | . . . . Machines Sabotaged . | . . . . Overloaded Fab Kills . | . . . . Hacking | -11 -10 -10 -10 --------- Run | Jun Mat Min Exi Machines Accessed 1 | . . . 1 Terminals . | . . . . Fabricators . | . . . . Repair Stations . | . . . . Recycling Units . | . . . . Scanalyzers . | . . . . Garrison Access . | . . . . Total Hacks 7 | . . . 7 Successful 7 | . . . 7 Failed . | . . . . Catastrophic . | . . . . Database Lockouts . | . . . . Manual 3 | . . . 3 Terminals . | . . . . Fabricators . | . . . . Repair Stations . | . . . . Recycling Units . | . . . . Scanalyzers . | . . . . Garrison Access . | . . . . Terminal Hacks 7 | . . . 7 Record 7 | . . . 7 Fabricator Hacks . | . . . . Repair Station Hacks . | . . . . Recycling Unit Hacks . | . . . . Scanalyzer . | . . . . Garrison Access Hacks . | . . . . Unauthorized Hacks . | . . . . Terminals . | . . . . Fabricators . | . . . . Repair Stations . | . . . . Recycling Units . | . . . . Scanalyzers . | . . . . Garrison Access . | . . . . Data Cores Recovered . | . . . . Used . | . . . . Hacking Detections . | . . . . Full Trace Events . | . . . . Feedback Events . | . . . . Feedback Blocked . | . . . . Robot Schematics Acquired . | . . . . Robots Built . | . . . . Authchips . | . . . . Time . | . . . . Total Robot Build Rating . | . . . . Part Schematics Acquired . | . . . . Parts Built . | . . . . Authchips . | . . . . Time . | . . . . Total Part Build Rating . | . . . . Parts Repaired . | . . . . Time . | . . . . Parts Recycled . | . . . . Recycled Matter . | . . . . Retrieved Matter . | . . . . Retrieved Components . | . . . . Parts Scanalyzed . | . . . . Part Schematics Acquired . | . . . . Parts Damaged . | . . . . Bothacking | -11 -10 -10 -10 ------------ Run | Jun Mat Min Exi Used RIF Installer . | . . . . Robots Hacked . | . . . . Non-combat . | . . . . Combat . | . . . . Robot Hacks Applied . | . . . . Relay Couplers Released . | . . . . Fabnet Peak Effective % . | . . . . Robots Rewired . | . . . . Allies Hacked . | . . . . Hacks Repelled . | . . . . Allies | -11 -10 -10 -10 -------- Run | Jun Mat Min Exi Total Allies . | . . . . Largest Group . | . . . . Highest-Rated Group . | . . . . Highest-Rated Ally . | . . . . Total Orders . | . . . . Ally Attacks . | . . . . Total Damage . | . . . . Kills . | . . . . Allies Corrupted . | . . . . Allies Melted . | . . . . Intel | -11 -10 -10 -10 ------- Run | Jun Mat Min Exi Robot Analysis Total . | . . . . Derelict Logs Recovered 1 | . . 1 . Drone Launches . | . . . . Drone Recoveries . | . . . . Exploration | -11 -10 -10 -10 ------------- Run | Jun Mat Min Exi Turns Passed 1501 | 80 210 713 498 Spaces Moved 1364 | 71 161 673 459 Core 20 | 15 . . 5 Treads . | . . . . Legs . | . . . . Wheels 1344 | 56 161 673 454 Hover . | . . . . Flight . | . . . . Fastest Speed 50 | 50 90 90 90 Average Speed 90 | 81 90 90 91 Slowest Speed 250 | 90 90 90 250 Overloaded Moves . | . . . . Propulsion Burnouts . | . . . . Robots Hopped . | . . . . Cave-ins Triggered . | . . . . Exploration Rate (%) 53 | 4 25 97 88 Regions Visited 3 Branch Regions 2 Pre-discovered Areas . | . . . . Known Exits Taken . | . . . . Unknown Exits Taken 3 | 1 1 1 . Scrap Searched 1 | . . 1 . Spaces Dug . | . . . . Terrain Destroyed 41 | . 22 . 19 Melee . | . . . . Projectile . | . . . . AOE 41 | . 22 . 19 Terrain Rammed . | . . . . Walls Destroyed . | . . . . Machines Disabled . | . . . . Actions | -11 -10 -10 -10 --------- Run | Jun Mat Min Exi Total 1610 | 92 218 778 522 Wait 191 | 8 48 101 34 Move 1361 | 70 160 672 459 Hop . | . . . . Pick Up 13 | 8 2 3 . Fast Attach . | . . . . Attach 13 | 6 2 . 5 Detach 6 | . 2 . 4 Swap . | . . . . Drop 1 | . . 1 . Fire 11 | . 4 1 6 Melee . | . . . . Ram 14 | . . . 14 Kick . | . . . . Crush . | . . . . Escape Stasis . | . . . . Rewire . | . . . . Trap . | . . . . Miscellaneous . | . . . . Route ------- -11/Junkyard -10/Materials -10/Mines (discovered 3 exits: [*Mat x2] / *Exi) -10/Exiles (discovered 1 exit: [*Min]) History --------- Turn | Location | Event 13 | -11/Junkyard | Discovered new exit (range 16) 81 | -11/Junkyard | Entered Materials 153 | -10/Materials | Discovered new exit (range 11) 217 | -10/Materials | Met 8R-AWN 291 | -10/Materials | Entered Mines 292 | -10/Mines | Followed 8R-AWN into the Mines 307 | -10/Mines | Build established: Mutant 349 | -10/Mines | Discovered new exit (range 15) 358 | -10/Mines | Discovered new exit (range 13) 381 | -10/Mines | Discovered new exit (range 5) 477 | -10/Mines | Found a hidden stash of uninstalled traps 527 | -10/Mines | Received a Rocket Launcher from a helpful Derelict 624 | -10/Mines | Learned Materials terminal intel 1004 | -10/Mines | Entered Exiles 1029 | -10/Exiles | Welcomed by 8R-AWN 1043 | -10/Exiles | Met EX-HEX 1094 | -10/Exiles | Met EX-DEC 1123 | -10/Exiles | Visited The Gauntlet 1286 | -10/Exiles | Discovered new exit (range 10) 1339 | -10/Exiles | Met EX-BIN 1434 | -10/Exiles | Attacked by the Exiles 1494 | -10/Exiles | Core integrity fell below 50% 1501 | -10/Exiles | Core integrity fell below 20% 1502 | -10/Exiles | Destroyed by 8R-AWN with 8R-AWN's Boregun Last Messages --------------- 01492_ Slammed into 8R-AWN. 01493_ Penetrated by HV Slug. 01493_ HV Slug penetrates Machine. 01493_ Penetrated by HV Slug. 01493_ HV Slug penetrates Machine. 01493_ Slammed into 8R-AWN. 01495_ Penetrated by HV Slug. 01496_ Slammed into 8R-AWN. 01497_ Penetrated by HV Slug. 01497_ HV Slug penetrates Machine. 01497_ Penetrated by HV Slug. 01497_ HV Slug penetrates Machine. 01498_ Slammed into 8R-AWN. 01500_ Penetrated by HV Slug. 01500_ HV Slug penetrates Wall. 01501_ Slammed into 8R-AWN. 01501_ Destabilizing: Core damaged (-12). 01502_ Penetrated by HV Slug. 01502_ HV Slug penetrates Wall. 01502_ Penetrated by HV Slug. Map ----- +----------------------------------------------------+ | "#???????##" #######?###??????????????????????? | | ##??????##"" #????????????????????????????????? | | ##?######"" #????????????????????????????????? | | "###""""""" ##???????????????????????????????? | | """""" " "" ##???###########????????????????? | | "" """ " #####"""""""""##???????????????? | | " " " """ """"##??????????????? | | "" " #??????????????? | | " """#??????????????? | | " "#???????????#### | | " "##?????????##" | | ""###???????#" | | """""" " "#??????##" | | ######""" "#????### | | ""##????#####""" ##???# | | """##?????????##""" ##?## | | """##???????????#"""" ### | | ""#???????????##"" ## | | ###?####??####"""" #### | | ## ####""" ""#?#" | | """" #"""##?## | | ######???? | | ##????????? | | "#?????????? | | " "" g " "#??????????? | | ""## ## @ # #??????????? | | ""#### ??#####""" "# ##??????????? | | """"##??#???????###"" ### # # #???????????? | | """#?????????????######??? # ###???????????? | | ""##??????????????????????## ###?????????????? | | """##??????????????????????????#???????????????? | | ##???????????????????????????????????????????? | | ##????????????????????????????????????????????? | | #?????????????????????????????????????????????? | | ##?????????????????????????????????????????????? | | #??????????????????????????????????????????????? | | #??????????????????????????????????????????????? | | #??????????????????????????????????????????????? | | #??????????????????????????????????????????????? | | #??????????????????????????????????????????????? | | #??????????????????????????????????????????????? | | #??????????????????????????????????????????????? | | #??????????????????????????????????????????????? | | #??????????????????????????????????????????????? | | #??????????????????????????????????????????????? | | ########?####??????????????????????????????????? | | """""""#"""""#?????????????????????????????????? | | "#"" ""#?????????????????????????????????? | | " ""#?????????????????????????????????? | | " " "#?????????????????????????????????? | +----------------------------------------------------+ Best States ------------- Heat Dissipation 25 Energy Generation 10 Energy Capacity 450 Matter Stores 300 Matter Capacity 300 Sight Range 16 Terrain Scan Density 10 Evasion (%) 50 Item Schematics ----------------- None Robot Schematics ------------------ None Fabricated ------------ Nothing Alien Tech Used ----------------- None Achievements -------------- None Challenges ------------ None Game ------ Seed SwordHellfireExtractor Manual? 0 Play Time 00:13:19 Cumulative 79.8 hours Start 2023.03.04 @ 13:05:18 End 2023.03.04 @ 13:14:53 Sessions 1 Manual Loads 0 Difficulty Rogue Special Mode None Game No. 144 Rogue 84 Adventurer 60 Explorer 0 Win Type - Total 0 Types 0/0/0/0/0/0/0/0/0 Lore% 39 Gallery% 56 Achievement% 53 Wizard Run 0 Options --------- ASCII 0 Keyboard 0 Movement Mouse Keybinds 0 Fullscreen 1 Font 18/SmallcapsGlow Map View 76x50 Tactical HUD 1 Map Filters NONE Filters NONE Steam 1 RUN: ec225c1b-f9d2-49d3-a402-7c301128b1ce